bitfinex-derivatives/quotes_BNBF0:USTF0_20250904
["timestamp","ask_amount","ask_price","bid_price","bid_amount"]
[1756957525218,0.20481552,849.91,848.97,1.28811382]
[1756957525517,0.20481552,849.91,848.98,1.28811382]
[1756957525720,0.20481552,849.91,848.99,1.28811382]
[1756957526020,0.20481552,849.91,849.0,1.28811382]
[1756957526318,0.20481552,849.91,849.01,1.28811382]
[1756957526515,0.20481552,849.91,849.02,1.28811382]
[1756957526719,0.20481552,849.91,849.03,1.28811382]
[1756957526920,0.20481552,849.91,849.04,1.28811382]
[1756957527215,0.20481552,849.91,848.83,0.79189134]
[1756957527216,0.20481552,849.91,849.05,1.28811382]
[1756957527420,0.20481552,849.91,849.06,1.28811382]
[1756957527620,0.20481552,849.91,849.07,1.28811382]
[1756957527821,0.20481552,849.91,849.08,1.28811382]
[1756957528018,0.20481552,849.91,849.09,1.28811382]
[1756957528221,0.20481552,849.91,849.1,1.28811382]
[1756957528419,0.20481552,849.91,849.11,1.28811382]
[1756957528721,0.20481552,849.91,849.12,1.28811382]
[1756957528922,0.20481552,849.91,848.84,0.79189134]
[1756957528923,0.20481552,849.91,849.13,1.28811382]
[1756957529123,0.20481552,849.91,849.14,1.28811382]
[1756957529318,0.20481552,849.91,849.15,1.28811382]
[1756957529622,0.20481552,849.91,849.16,0.58890278]
[1756957529821,0.20481552,849.91,849.17,0.58890278]
[1756957530122,0.20481552,849.91,849.18,0.58890278]
[1756957530319,0.20481552,849.91,849.19,0.58890278]
[1756957530518,0.20481552,849.91,849.2,0.58890278]
[1756957530718,0.20481552,849.91,849.21,0.58890278]
[1756957531022,0.20481552,849.91,849.22,0.58890278]
[1756957531216,0.20481552,849.91,849.23,0.58890278]
[1756957531422,0.20481552,849.91,849.24,0.58890278]
[1756957531622,0.20481552,849.91,849.25,0.58890278]
[1756957531822,0.20481552,849.91,849.26,0.58890278]
[1756957532018,0.20481552,849.91,849.27,0.58890278]
[1756957532222,0.20481552,849.91,849.28,0.58890278]
[1756957532422,0.20481552,849.91,849.29,0.58890278]
[1756957532620,0.20481552,849.91,849.3,0.58890278]
[1756957532821,0.20481552,849.91,849.31,0.58890278]
[1756957533021,0.20481552,849.91,849.32,0.58890278]
[1756957533222,0.20481552,849.91,849.33,0.58890278]
[1756957533422,0.20481552,849.91,848.87,0.79189134]
[1756957533621,0.20481552,849.91,848.88,1.29115636]
[1756957533824,0.20481552,849.91,848.89,1.29115636]
[1756957534024,0.20481552,849.91,848.9,1.29115636]
[1756957534324,0.20481552,849.91,848.91,1.29115636]
[1756957534627,0.20481552,849.91,848.92,1.29115636]
[1756957534822,0.20481552,849.91,848.93,1.29115636]
[1756957535022,0.20481552,849.91,848.94,1.29115636]
[1756957535326,0.20481552,849.91,848.95,1.29115636]
[1756957535525,0.20481552,849.91,848.96,1.29115636]
[1756957535727,0.20481552,849.91,848.97,1.29115636]
[1756957536023,0.20481552,849.91,848.98,1.29115636]
[1756957536226,0.20481552,849.91,848.99,1.29115636]
[1756957536426,0.20481552,849.91,849.0,1.29115636]
[1756957536726,0.20481552,849.91,849.01,1.29115636]
[1756957536925,0.20481552,849.91,848.87,0.79189134]
[1756957536926,0.20481552,849.91,849.02,1.29115636]
[1756957537123,0.20481552,849.91,849.03,1.29115636]
[1756957537322,0.20481552,849.91,849.04,1.29115636]
[1756957537522,0.20481552,849.91,849.05,1.29115636]
[1756957537723,0.20481552,849.91,849.06,1.29115636]
[1756957537923,0.20481552,849.91,849.07,1.29115636]
[1756957538227,0.20481552,849.91,849.08,1.29115636]
[1756957538426,0.20481552,849.91,849.09,1.29115636]
[1756957538625,0.20481552,849.91,849.1,1.29115636]
[1756957538822,0.20481552,849.91,849.11,1.29115636]
[1756957539028,0.20481552,849.91,849.12,1.29115636]
[1756957539227,0.20481552,849.91,849.13,1.29115636]
[1756957539425,0.20481552,849.91,849.14,1.29115636]
[1756957539625,0.20481552,849.91,849.15,1.29115636]
[1756957539828,0.20481552,849.91,849.16,1.29115636]
[1756957540023,0.20481552,849.91,849.17,1.29115636]
[1756957540226,0.20481552,849.91,849.18,1.29115636]
[1756957540427,0.20481552,849.91,849.19,0.58889109]
[1756957540627,0.20481552,849.91,849.2,0.58889109]
[1756957540825,0.20481552,849.91,848.87,0.79189134]
[1756957540826,0.20481552,849.91,849.21,0.58889109]
[1756957541055,0.20481552,849.91,849.22,0.58889109]
[1756957541330,0.20481552,849.91,849.23,0.58889109]
[1756957541528,0.20481552,849.91,849.24,0.58889109]
[1756957541730,0.20481552,849.91,849.25,0.58889109]
[1756957541931,0.20481552,849.91,849.26,0.58889109]
[1756957542128,0.20481552,849.91,849.27,0.58889109]
[1756957542331,0.20481552,849.91,849.28,0.58889109]
[1756957542527,0.20481552,849.91,849.29,0.58889109]
[1756957542827,0.20481552,849.91,849.3,0.58889109]
[1756957543028,0.20481552,849.91,849.31,0.58889109]
[1756957543227,0.20481552,849.91,849.32,0.58889109]
[1756957543431,0.20481552,849.91,849.33,0.58889109]
[1756957543731,0.20481552,849.91,848.87,0.79189134]
[1756957544031,0.20481552,849.91,848.88,1.2911599]
[1756957544232,0.20481552,849.91,848.89,1.2911599]
[1756957544432,0.20481552,849.91,848.9,1.2911599]
[1756957544731,0.20481552,849.91,848.91,1.2911599]
[1756957544928,0.20481552,849.91,848.92,1.2911599]
[1756957545229,0.20481552,849.91,848.93,1.2911599]
[1756957545427,0.20481552,849.91,848.94,1.2911599]
[1756957545726,0.20481552,849.91,848.95,1.2911599]
[1756957545927,0.20481552,849.91,848.96,1.2911599]
[1756957546128,0.20481552,849.91,848.97,1.2911599]
[1756957546431,0.20481552,849.91,848.98,1.2911599]
[1756957546731,0.20481552,849.91,848.99,1.2911599]
[1756957547033,0.20481552,849.91,848.1,0.20489089]
[1756957547034,0.20481552,849.91,849.0,1.2911599]
[1756957547227,0.20481552,849.91,849.01,1.2911599]
[1756957547532,0.20481552,849.91,849.02,1.2911599]
[1756957547728,0.20481552,849.91,849.03,1.2911599]
[1756957547930,0.20481552,849.91,849.04,1.2911599]
[1756957548127,0.20481552,849.91,849.05,1.2911599]
[1756957548330,0.20481552,849.91,849.06,1.2911599]
[1756957548533,0.20481552,849.91,849.07,1.2911599]
[1756957548831,0.20481552,849.91,849.08,1.2911599]
[1756957549127,0.20481552,849.91,849.09,1.2911599]
[1756957549332,0.20481552,849.91,849.1,1.2911599]
[1756957549530,0.20481552,849.91,849.11,1.2911599]
[1756957549729,0.20481552,849.91,849.12,1.2911599]
[1756957549933,0.20481552,849.91,849.13,1.2911599]
[1756957550133,0.20481552,849.91,849.14,1.2911599]
[1756957550432,0.20481552,849.91,849.15,1.2911599]
[1756957550629,0.20481552,849.91,849.16,1.2911599]
[1756957550929,0.20481552,849.91,849.17,1.2911599]
[1756957551232,0.20481552,849.91,849.18,1.2911599]
[1756957551432,0.20481552,849.91,849.19,1.2911599]
[1756957551634,0.20481552,849.91,849.2,1.2911599]
[1756957551837,0.20481552,849.91,849.21,1.2911599]
[1756957552037,0.20481552,849.91,849.22,1.2911599]
[1756957552235,0.20481552,849.91,849.23,1.2911599]
[1756957552439,0.20481552,849.91,849.24,1.2911599]
[1756957552738,0.20481552,849.91,849.25,1.2911599]
[1756957553038,0.20481552,849.91,849.26,1.2911599]
[1756957553235,0.20481552,849.91,849.27,1.2911599]
[1756957553432,0.20481552,849.91,849.28,1.2911599]
[1756957553635,0.20481552,849.91,849.29,1.2911599]
[1756957553834,0.20481552,849.91,849.3,1.2911599]
[1756957554039,0.20481552,849.91,849.31,1.2911599]
[1756957554335,0.20481552,849.91,849.32,1.2911599]
[1756957554538,0.20481552,849.91,849.33,1.2911599]
[1756957554735,0.20481552,849.91,849.34,1.2911599]
[1756957554934,0.20481552,849.91,849.35,1.2911599]
[1756957555139,0.20481552,849.91,849.36,0.58889043]
[1756957555434,0.20481552,849.91,849.37,0.58889043]
[1756957555635,0.20481552,849.91,849.38,0.58889043]
[1756957555834,0.20481552,849.91,849.39,0.58889043]
[1756957556038,0.20481552,849.91,849.4,0.58889043]
[1756957556235,0.20481552,849.91,849.41,0.58889043]
[1756957556434,0.20481552,849.91,849.42,0.58889043]
[1756957556633,0.20481552,849.91,849.43,0.58889043]
[1756957556835,0.20481552,849.91,849.44,0.58889043]
[1756957557034,0.20481552,849.91,849.45,0.58889043]
[1756957557237,0.20481552,849.91,849.46,0.58889043]
[1756957557441,0.20481552,849.91,849.47,0.58889043]
[1756957557639,0.20481552,849.91,849.48,0.58889043]
[1756957557840,0.20481552,849.91,849.49,0.58889043]
[1756957558038,0.20481552,849.91,849.5,0.58881673]
[1756957558337,0.20481552,849.91,848.95,0.79189134]
[1756957558535,0.20481552,849.91,848.96,1.29135313]
[1756957558734,0.20481552,849.91,848.97,1.29135313]
[1756957558938,0.20481552,849.91,848.98,1.29135313]
[1756957559139,0.20481552,849.91,848.99,1.29135313]
[1756957559435,0.20481552,849.91,849.0,1.29135313]
[1756957559634,0.20481552,849.91,849.01,1.29135313]
[1756957559839,0.20481552,849.91,849.02,1.29135313]
[1756957560040,0.20481552,849.91,849.03,2.08324447]
[1756957560239,0.20481552,849.91,849.04,2.08324447]
[1756957560537,0.20481552,849.91,849.05,1.29135313]
[1756957560740,0.20481552,849.91,849.06,1.29135313]
[1756957560941,0.20481552,849.91,849.07,1.29134743]
[1756957561136,0.20481552,849.91,848.74,1.5817647]
[1756957561137,0.20481552,849.91,849.08,1.29134743]
[1756957561337,0.20481552,849.91,848.9,1.0545098]
[1756957561338,0.20481552,849.91,849.09,1.29134743]
[1756957561539,0.20481552,849.91,849.1,1.29134743]
[1756957561738,0.20481552,849.91,849.11,1.29134743]
[1756957561941,0.20481552,849.91,849.12,1.29134743]
[1756957562141,0.20481552,849.91,849.13,1.29134743]
[1756957562339,0.20481552,849.91,849.14,1.29134743]
[1756957562537,0.20481552,849.91,849.15,1.29134743]
[1756957562741,0.20481552,849.91,849.16,1.29134743]
[1756957563044,0.20481552,849.91,849.02,0.79189134]
[1756957563045,0.20481552,849.91,849.17,1.29134743]
[1756957563242,0.20481552,849.91,849.18,1.29134743]
[1756957563538,0.20481552,849.91,849.19,1.29134743]
[1756957563742,0.20481552,849.91,849.2,1.29134743]
[1756957563940,0.20481552,849.91,849.21,1.29130689]
[1756957564141,0.20481552,849.91,849.22,1.29130689]
[1756957564337,0.20481552,849.91,849.01,0.79189134]
[1756957564338,0.20481552,849.91,849.23,1.29130689]
[1756957564542,0.20481552,849.91,849.24,1.29130689]
[1756957564743,0.20481552,849.91,849.25,1.29130689]
[1756957564939,0.20481552,849.91,849.26,1.29130689]
[1756957565143,0.20481552,849.91,849.27,1.29130689]
[1756957565343,0.20481552,849.91,849.28,1.29130689]
[1756957565644,0.20481552,849.91,849.29,1.29130689]
[1756957565838,0.20481552,849.91,849.3,1.29130689]
[1756957566048,0.20481552,849.91,849.31,1.29130689]
[1756957566243,0.20481552,849.91,849.32,1.29130689]
[1756957566443,0.20481552,849.91,849.33,1.29130689]
[1756957566644,0.20481552,849.91,849.34,1.29130689]
[1756957566942,0.20481552,849.91,849.35,1.29130689]
[1756957567145,0.20481552,849.91,849.36,1.29130689]
[1756957567343,0.20481552,849.91,849.37,1.29130689]
[1756957567643,0.20481552,849.91,849.38,1.29130689]
[1756957567940,0.20481552,849.91,849.39,1.29130689]
[1756957568141,0.20481552,849.91,849.4,1.29130689]
[1756957568441,0.20481552,849.91,849.41,1.29130689]
[1756957568639,0.20481552,849.91,849.42,1.29130689]
[1756957568844,0.20481552,849.91,849.43,0.58877049]
[1756957569138,0.20481552,849.91,849.44,0.58877049]
[1756957569343,0.20481552,849.91,849.45,0.58877049]
[1756957569543,0.20481552,849.91,849.46,0.58877049]
[1756957569745,0.20481552,849.91,849.47,0.58877049]
[1756957569940,0.20481552,849.91,849.48,0.58877049]
[1756957570239,0.20481552,849.91,849.49,0.58877049]
[1756957570444,0.20481552,849.91,849.5,0.58877049]
[1756957570640,0.20481552,849.91,849.51,0.58877049]
[1756957570844,0.20481552,849.91,849.52,0.58877049]
[1756957571044,0.20481552,849.91,849.53,0.58877049]
[1756957571241,0.20481552,849.91,849.54,0.58877049]
[1756957571540,0.20481552,849.91,849.55,0.58877049]
[1756957571845,0.20481552,849.91,849.56,0.58877049]
[1756957572048,0.20481552,849.91,849.57,0.58877049]
[1756957572244,0.20481552,849.91,849.58,0.58877049]
[1756957572545,0.20481552,849.91,849.59,0.58877049]
[1756957572739,0.20481552,849.91,849.6,0.58877049]
[1756957572941,0.20481552,849.91,849.05,0.79189134]
[1756957573144,0.20481552,849.91,849.06,1.29152728]
[1756957573344,0.20481552,849.91,849.07,1.29152728]
[1756957573543,0.20481552,849.91,849.08,1.29152728]
[1756957573842,0.20481552,849.91,849.09,1.29152728]
[1756957574144,0.20481552,849.91,849.1,1.29152728]
[1756957574344,0.20481552,849.91,849.11,1.29152728]
[1756957574550,0.20481552,849.91,849.12,1.29152728]
[1756957574844,0.20481552,849.91,849.13,1.29152728]
[1756957575048,0.20481552,849.91,849.14,1.29152728]
[1756957575345,0.20481552,849.91,849.15,1.29152728]
[1756957575646,0.20481552,849.91,849.16,1.29152728]
[1756957575842,0.20481552,849.91,849.17,1.29152728]
[1756957576043,0.20481552,849.91,849.18,1.29152728]
[1756957576243,0.20481552,849.91,849.19,1.29152728]
[1756957576544,0.20481552,849.91,849.2,1.29152728]
[1756957576746,0.20481552,849.91,849.21,1.29152728]
[1756957576946,0.20481552,849.91,849.22,1.29152728]
[1756957577143,0.20481552,849.91,849.23,1.29152728]
[1756957577445,0.20481552,849.91,849.24,1.29152728]
[1756957577644,0.20481552,849.91,849.25,1.29152728]
[1756957577847,0.20481552,849.91,849.26,1.29152728]
[1756957578047,0.20481552,849.91,849.27,1.29152728]
[1756957578249,0.20481552,849.91,849.28,1.29152728]
[1756957578546,0.20481552,849.91,849.29,1.29152728]
[1756957578744,0.20481552,849.91,849.3,1.29152728]
[1756957578952,0.20481552,849.91,849.31,1.29152728]
[1756957579246,0.20481552,849.91,849.32,1.29152728]
[1756957579450,0.20481552,849.91,849.33,1.29152728]
[1756957579651,0.20481552,849.91,849.34,1.29152728]
[1756957579951,0.20481552,849.91,849.35,1.29152728]
[1756957580246,0.20481552,849.91,849.36,1.29152728]
[1756957580545,0.20481552,849.91,849.37,0.58874706]
[1756957580750,0.20481552,849.91,849.38,0.58874706]
[1756957580944,0.20481552,849.91,849.39,0.58874706]
[1756957581148,0.20481552,849.91,848.6,1.0545098]
[1756957581149,0.20481552,849.91,849.4,0.58874706]
[1756957581346,0.20481552,849.91,849.41,0.58874706]
[1756957581550,0.20481552,849.91,849.42,0.58874706]
[1756957581750,0.20481552,849.91,849.43,0.58874706]
[1756957581951,0.20481552,849.91,849.44,0.58874706]
[1756957582152,0.20481552,849.91,849.45,0.58874706]
[1756957582350,0.20481552,849.91,849.46,0.58874706]
[1756957582549,0.20481552,849.91,849.47,0.58874706]
[1756957582848,0.20481552,849.91,849.48,0.58874706]
[1756957583053,0.20481552,849.91,849.49,0.58874706]
[1756957583353,0.20481552,849.91,849.5,0.58874706]
[1756957583549,0.20481552,849.91,849.51,0.58874706]
[1756957583751,0.20481552,849.91,849.52,0.58874706]
[1756957583953,0.20481552,849.91,849.53,0.58874706]
[1756957584154,0.20481552,849.91,849.54,0.58874706]
[1756957584354,0.20481552,849.91,849.55,0.58874706]
[1756957584554,0.20481552,849.91,849.56,0.58874706]
[1756957584855,0.20481552,849.91,848.91,0.79189134]
[1756957585155,0.20481552,849.91,848.92,1.29181773]
[1756957585454,0.20481552,849.91,848.93,1.29181773]
[1756957585654,0.20481552,849.91,848.95,0.79189134]
[1756957585951,0.20481552,849.91,848.96,1.29181773]
[1756957586254,0.20481552,849.91,848.97,1.29181773]
[1756957586454,0.20481552,849.91,848.98,1.29181773]
[1756957586650,0.20481552,849.91,847.54,2.6362745]
[1756957586651,0.20481552,849.91,849.05,0.79189134]
[1756957586957,0.20481552,849.91,849.06,1.29181773]
[1756957587155,0.20481552,849.91,849.07,1.29181773]
[1756957587356,0.20481552,849.91,849.08,1.29181773]
[1756957587556,0.20481552,849.91,849.09,1.29181773]
[1756957587856,0.20481552,849.91,849.1,1.29181773]
[1756957588150,0.20481552,849.91,849.11,1.29181773]
[1756957588453,0.20481552,849.91,849.12,1.29181773]
[1756957588656,0.20481552,849.91,849.13,1.29181773]
[1756957588856,0.20481552,849.91,849.14,1.29181773]
[1756957589057,0.20481552,849.91,849.15,1.29181773]
[1756957589257,0.20481552,849.91,849.16,1.29181773]
[1756957589453,0.20481552,849.91,849.17,1.29181773]
[1756957589651,0.20481552,849.91,849.18,1.29181773]
[1756957589856,0.20481552,849.91,849.19,1.29181773]
[1756957590056,0.20481552,849.91,849.2,1.29181773]
[1756957590352,0.20481552,849.91,849.21,1.29181773]
[1756957590552,0.20481552,849.91,849.22,1.29181773]
[1756957590756,0.20481552,849.91,849.23,1.29181773]
[1756957590959,0.20481552,849.91,849.24,1.29181773]
[1756957591158,0.20481552,849.91,849.25,1.29181773]
[1756957591358,0.20481552,849.91,849.26,1.29181773]
[1756957591558,0.20481552,849.91,849.27,1.29181773]
[1756957591858,0.20481552,849.91,849.28,1.29181224]
[1756957592055,0.20481552,849.91,849.29,1.29181224]
[1756957592357,0.20481552,849.91,849.3,1.29181224]
[1756957592556,0.20481552,849.91,849.31,1.29181224]
[1756957592858,0.20481552,849.91,849.32,1.29181224]
[1756957593059,0.20481552,849.91,849.33,1.29181224]
[1756957593255,0.20481552,849.91,849.34,1.29181224]
[1756957593461,0.20481552,849.91,849.35,1.29181224]
[1756957593661,0.20481552,849.91,849.36,0.58881092]
[1756957593861,0.20481552,849.91,849.37,0.58881092]
[1756957594060,0.20481552,849.91,849.38,0.58881092]
[1756957594262,0.20481552,849.91,849.39,0.58881092]
[1756957594464,0.20481552,849.91,849.4,0.58881092]
[1756957594664,0.20481552,849.91,849.41,0.58881092]
[1756957594864,0.20481552,849.91,849.42,0.58881092]
[1756957595061,0.20481552,849.91,849.43,0.58881092]
[1756957595265,0.20481552,849.91,849.44,0.58881092]
[1756957595464,0.20481552,849.91,849.45,0.58881092]
[1756957595664,0.20481552,849.91,849.46,0.58881092]
[1756957595864,0.20481552,849.91,849.47,0.58881092]
[1756957596161,0.20481552,849.91,849.48,0.58881092]
[1756957596368,0.20481552,849.91,849.49,0.58881092]
[1756957596566,0.20481552,849.91,849.5,0.58881092]
[1756957596768,0.20481552,849.91,849.51,0.58881092]
[1756957596963,0.20481552,849.91,849.03,0.79189134]
[1756957597165,0.20481552,849.91,849.04,1.29210093]
[1756957597466,0.20481552,849.91,849.05,1.29210093]
[1756957597769,0.20481552,849.91,849.06,1.29210093]
[1756957597963,0.20481552,849.91,849.07,1.29210093]
[1756957598167,0.20481552,849.91,849.08,1.29210093]
[1756957598364,0.20481552,849.91,849.09,1.29210093]
[1756957598664,0.20481552,849.91,849.1,1.29210093]
[1756957598863,0.20481552,849.91,849.11,1.29210093]
[1756957599063,0.20481552,849.91,849.12,1.29219287]
[1756957599265,0.20481552,849.91,849.13,1.29219287]
[1756957599465,0.20481552,849.91,849.14,1.29219287]
[1756957599664,0.20481552,849.91,849.15,1.29219287]
[1756957599969,0.20481552,849.91,849.03,0.79301134]
[1756957599970,0.20481552,849.91,849.16,1.29219287]
[1756957600163,0.20481552,849.91,849.17,1.29219287]
[1756957600367,0.20481552,849.91,849.18,1.29219287]
[1756957600565,0.20481552,849.91,849.19,1.29219287]
[1756957600765,0.20481552,849.91,849.2,1.29219287]
[1756957600966,0.20481552,849.91,849.21,1.29219287]
[1756957601166,0.20481552,849.91,849.22,1.29219287]
[1756957601366,0.20481552,849.91,849.23,1.29219287]
[1756957601566,0.20481552,849.91,849.24,1.29219287]
[1756957601767,0.20481552,849.91,849.25,1.29219287]
[1756957601967,0.20481552,849.91,849.26,1.29219287]
[1756957602170,0.20481552,849.91,849.27,1.29220913]
[1756957602366,0.20481552,849.91,849.28,1.29220913]
[1756957602570,0.20481552,849.91,849.29,1.29220913]
[1756957602769,0.20481552,849.91,849.3,1.29220913]
[1756957602971,0.20481552,849.91,849.31,0.58882734]
[1756957603172,0.20481552,849.91,849.32,0.58882734]
[1756957603371,0.20481552,849.91,849.33,0.58882734]
[1756957603566,0.20481552,849.91,849.34,0.58882734]
[1756957603872,0.20481552,849.91,849.35,0.58882734]
[1756957604072,0.20481552,849.91,849.36,0.58882734]
[1756957604369,0.20481552,849.91,849.37,0.58882734]
[1756957604573,0.20481552,849.91,849.38,0.58882734]
[1756957604772,0.20481552,849.91,848.91,0.79301134]
[1756957604973,0.20481552,849.91,848.92,1.29250199]
[1756957605173,0.20481552,849.91,848.93,1.29250199]
[1756957605368,0.20481552,849.91,848.94,1.29250199]
[1756957605570,0.20481552,849.91,848.95,1.29250199]
[1756957605771,0.20481552,849.91,848.96,1.29250199]
[1756957605968,0.20481552,849.91,848.97,1.29250199]
[1756957606172,0.20481552,849.91,848.98,1.29250199]
[1756957606469,0.20481552,849.91,848.99,1.29250199]
[1756957606772,0.20481552,849.91,849.0,1.29250199]
[1756957606971,0.20481552,849.91,849.01,1.29250199]
[1756957607169,0.20481552,849.91,849.02,1.29250199]
[1756957607373,0.20481552,849.91,849.03,1.29250199]
[1756957607569,0.20481552,849.91,849.04,1.29250199]
[1756957607771,0.20481552,849.91,849.05,1.29250199]
[1756957607969,0.20481552,849.91,848.9,0.79301134]
[1756957607970,0.20481552,849.91,849.06,1.29250199]
[1756957608172,0.20481552,849.91,849.07,1.29250199]
[1756957608374,0.20481552,849.91,849.08,1.29250199]
[1756957608670,0.20481552,849.91,849.09,1.29250199]
[1756957608869,0.20481552,849.91,849.1,1.29250199]
[1756957609070,0.20481552,849.91,849.11,1.29250199]
[1756957609272,0.20481552,849.91,849.12,1.29250199]
[1756957609474,0.20481552,849.91,849.13,1.29250199]
[1756957609671,0.20481552,849.91,849.14,1.29250199]
[1756957609874,0.20481552,849.91,849.15,1.29250199]
[1756957610075,0.20481552,849.91,849.16,1.29250199]
[1756957610377,0.20481552,849.91,849.17,1.29250199]
[1756957610572,0.20481552,849.91,849.18,1.29250199]
[1756957610875,0.20481552,849.91,849.19,1.29250199]
[1756957611174,0.20481552,849.91,849.2,1.29250199]
[1756957611375,0.20481552,849.91,849.21,1.29250199]
[1756957611575,0.20481552,849.91,849.22,1.29250199]
[1756957611775,0.20481552,849.91,849.23,1.29250199]
[1756957612078,0.20481552,849.91,849.24,1.29250199]
[1756957612276,0.20481552,849.91,849.25,1.29250199]
[1756957612474,0.20481552,849.91,849.26,1.29250199]
[1756957612677,0.20481552,849.91,849.27,1.29250199]
[1756957612872,0.20481552,849.91,849.28,1.29250199]
[1756957613073,0.20481552,849.91,849.29,1.29250199]
[1756957613274,0.20481552,849.91,849.3,1.29250199]
[1756957613474,0.20481552,849.91,849.31,1.29250199]
[1756957613675,0.20481552,849.91,849.0,0.79301134]
[1756957613676,0.20481552,849.91,849.32,1.29250199]
[1756957613876,0.20481552,849.91,849.33,1.29250199]
[1756957614075,0.20481552,849.91,849.34,1.29250199]
[1756957614273,0.20481552,849.91,849.35,1.29250199]
[1756957614578,0.20481552,849.91,849.36,1.29250199]
[1756957614777,0.20481552,849.91,849.37,1.29250199]
[1756957614975,0.20481552,849.91,849.38,1.29250199]
[1756957615178,0.20481552,849.91,849.39,1.29250199]
[1756957615476,0.20481552,849.91,849.4,1.29250199]
[1756957615778,0.20481552,849.91,849.41,1.29250199]
[1756957615976,0.20481552,849.91,849.42,1.29250199]
[1756957616277,0.20481552,849.91,849.43,1.29250199]
[1756957616475,0.20481552,849.91,849.44,1.29250199]
[1756957616680,0.20481552,849.91,849.45,1.29250199]
[1756957616880,0.20481552,849.91,849.46,1.29250199]
[1756957617181,0.20481552,849.91,849.47,0.5888744]
[1756957617380,0.20481552,849.91,849.48,0.5888744]
[1756957617581,0.20481552,849.91,849.49,0.5888744]
[1756957617875,0.20481552,849.91,849.5,0.5888744]
[1756957618082,0.20481552,849.91,849.51,1.29263374]
[1756957618280,0.20481552,849.91,849.52,1.29263374]
[1756957618483,0.20481552,849.91,849.53,0.5888744]
[1756957618681,0.20481552,849.91,849.54,0.5888744]
[1756957618980,0.20481552,849.91,849.55,0.5888744]
[1756957619179,0.20481552,849.91,849.56,0.5888744]
[1756957619376,0.20481552,849.91,849.57,0.5888744]
[1756957619580,0.20481552,849.91,849.58,0.5888744]
[1756957619876,0.20481552,849.91,849.59,0.5888744]
[1756957620178,0.20481552,849.91,849.6,0.5888744]
[1756957620380,0.20481552,849.91,849.61,0.5888744]
[1756957620580,0.20481552,849.91,849.62,0.5888744]
[1756957620881,0.20481552,849.91,849.63,0.5888744]
[1756957621080,0.20481552,849.91,849.64,0.5888744]
[1756957621282,0.20481552,849.91,849.65,0.5888744]
[1756957621480,0.20481552,849.91,849.66,0.5888744]
[1756957621680,0.20481552,849.91,849.67,0.5888744]
[1756957621881,0.20481552,849.91,848.91,0.79301134]
[1756957622081,0.20481552,849.91,848.92,1.29259767]
[1756957622379,0.20481552,849.91,848.93,1.29259767]
[1756957622582,0.20481552,849.91,848.94,1.29259767]
[1756957622780,0.20481552,849.91,848.99,0.79301134]
[1756957623083,0.20481552,849.91,849.0,1.29259767]
[1756957623284,0.20481552,849.91,849.01,1.29259767]
[1756957623481,0.20481552,849.91,849.02,1.29259767]
[1756957623680,0.20481552,849.91,849.03,1.29259767]
[1756957623981,0.20481552,849.91,849.04,1.29259767]
[1756957624185,0.20481552,849.91,849.05,1.29259767]
[1756957624381,0.20481552,849.91,849.06,1.29259767]
[1756957624585,0.20481552,849.91,849.07,1.29259767]
[1756957624785,0.20481552,849.91,849.08,1.29259767]
[1756957624984,0.20481552,849.91,849.09,1.29259767]
[1756957625187,0.20481552,849.91,849.1,1.29259767]
[1756957625384,0.20481552,849.91,849.11,1.29259767]
[1756957625589,0.20481552,849.91,849.12,1.29259767]
[1756957625786,0.20481552,849.91,849.13,1.29259767]
[1756957625989,0.20481552,849.91,849.14,1.29259767]
[1756957626290,0.20481552,849.91,849.15,1.29259767]
[1756957626489,0.20481552,849.91,849.16,1.29259767]
[1756957626687,0.20481552,849.91,849.17,1.29259767]
[1756957626890,0.20481552,849.91,849.18,1.29259767]
[1756957627090,0.20481552,849.91,849.19,1.29259767]
[1756957627286,0.20481552,849.91,849.2,1.29259767]
[1756957627592,0.20481552,849.91,849.21,1.29259767]
[1756957627887,0.20481552,849.91,849.22,1.29259767]
[1756957628092,0.20481552,849.91,849.23,1.29259767]
[1756957628290,0.20481552,849.91,849.24,1.29259767]
[1756957628489,0.20481552,849.91,849.25,1.29259767]
[1756957628686,0.20481552,849.91,849.26,1.29259767]
[1756957628890,0.20481552,849.91,849.27,0.58881027]
[1756957629089,0.20481552,849.91,849.28,0.58881027]
[1756957629290,0.20481552,849.91,849.29,0.58881027]
[1756957629488,0.20481552,849.91,849.3,0.58881027]
[1756957629691,0.20481552,849.91,849.31,0.58881027]
[1756957629890,0.20481552,849.91,849.32,0.58881027]
[1756957630191,0.20481552,849.91,849.33,0.58881027]
[1756957630392,0.20481552,849.91,849.34,0.58881027]
[1756957630692,0.20481552,849.91,849.35,0.58881027]
[1756957630892,0.20481552,849.91,849.36,0.58881027]
[1756957631091,0.20481552,849.91,849.37,0.58881027]
[1756957631291,0.20481552,849.91,849.38,0.58881027]
[1756957631489,0.20481552,849.91,849.39,0.58881027]
[1756957631689,0.20481552,849.91,849.4,0.58881027]
[1756957631893,0.20481552,849.91,849.41,0.58881027]
[1756957632090,0.20481552,849.91,849.42,0.58881027]
[1756957632290,0.20481552,849.91,849.43,0.58881027]
[1756957632591,0.20481552,849.91,849.44,0.58881027]
[1756957632790,0.20481552,849.91,849.45,0.58881027]
[1756957632990,0.20481552,849.91,849.46,0.58881027]
[1756957633197,0.20481552,849.91,849.47,0.58881027]